bitfinex/quotes_ETHUSD_20241204
["timestamp","ask_amount","ask_price","bid_price","bid_amount"]
[1733337898175,0.19549697,3811.1,3810.4,2.62439]
[1733337898337,0.76208962,3811.4,3810.4,2.62439]
[1733337898531,1.39185812,3811.3,3810.4,2.62439]
[1733337898770,0.19559212,3811.2,3810.4,2.62439]
[1733337898936,0.19559212,3811.1,3810.2,2.62452]
[1733337899131,2.81957212,3811.0,3809.5,0.52755187]
[1733337899358,8.42,3810.8,3809.9,2.62472]
[1733337899640,1.31954509,3810.7,3809.9,2.62472]
[1733337899846,1.12395721,3810.7,3810.0,2.62466]
[1733337900247,8.42,3810.8,3810.3,1.6527]
[1733337900488,8.42,3810.8,3810.7,2.62418]
[1733337900642,2.19083157,3812.1,3811.0,2.62396]
[1733337900643,8.42,3811.5,3811.0,2.62396]
[1733337900838,0.19561822,3811.4,3811.1,2.62388]
[1733337901069,8.42,3811.5,3811.1,2.62388]
[1733337901240,8.42,3811.5,3811.2,2.6238]
[1733337901439,8.42,3811.5,3811.3,2.62373]
[1733337902247,8.42,3811.4,3811.3,2.62373]
[1733337902450,8.42,3811.4,3811.0,1.6004]
[1733337902787,8.42,3811.4,3811.2,2.62383]
[1733337903084,8.42,3811.4,3811.1,2.62391]
[1733337903288,8.42,3811.4,3811.2,2.62379]
[1733337903950,8.42,3811.4,3811.3,2.62377]
[1733337906593,8.42,3812.0,3811.1,0.55]
[1733337906885,8.42,3812.0,3811.9,2.62332]
[1733337907381,5.61163791,3812.8,3811.9,2.62332]
[1733337907692,0.19542315,3812.7,3811.7,2.62348]
[1733337907858,0.19542315,3812.6,3811.7,2.62348]
[1733337908062,0.76942002,3812.7,3811.2,4.503484]
[1733337908063,0.19542315,3812.5,3811.2,1.879694]
[1733337908391,0.19542315,3812.6,3811.6,2.62356]
[1733337908597,0.19542315,3812.5,3811.7,2.62349]
[1733337908748,0.19542315,3812.5,3811.3,0.2429694]
[1733337908749,0.19542315,3812.6,3811.9,2.62334]
[1733337908952,5.61163791,3812.8,3812.2,2.62314]
[1733337909175,5.61163791,3812.7,3811.6,1.5568]
[1733337909348,6.1728017,3812.6,3811.3,1.7997694]
[1733337909549,6.1728017,3812.6,3811.6,2.62351]
[1733337909748,8.7956817,3812.6,3811.5,2.6236]
[1733337910020,8.7956817,3812.6,3811.3,1.5568]
[1733337910021,6.1728017,3812.6,3811.3,1.5568]
[1733337910230,5.61163791,3812.6,3811.3,1.974858]
[1733337910525,5.61163791,3812.6,3812.4,2.62301]
[1733337911018,5.61163791,3812.6,3812.5,2.62295]
[1733337911686,5.61163791,3813.6,3812.6,2.62284]
[1733337911881,5.61163791,3813.5,3812.3,1.5197]
[1733337912085,5.61163791,3813.4,3812.4,0.15197]
[1733337912320,5.61163791,3813.4,3813.0,2.62259]
[1733337913011,5.61163791,3813.4,3812.5,0.55]
[1733337913204,5.61163791,3814.3,3813.4,2.62226]
[1733337913411,5.61163791,3814.3,3812.6,1.6085]
[1733337913412,0.67076659,3814.2,3813.5,2.62225]
[1733337913738,5.61163791,3814.1,3813.4,4.23081]
[1733337913916,5.61163791,3814.1,3813.9,2.62197]
[1733337914093,5.61163791,3815.0,3813.4,1.6085]
[1733337914286,2.74018795,3816.0,3812.5,0.2685366]
[1733337914287,5.61163791,3814.9,3813.8,2.62205]
[1733337914724,5.61163791,3814.8,3813.8,2.62205]
[1733337915179,5.61163791,3814.8,3814.1,2.62184]
[1733337915503,5.61163791,3814.8,3814.2,2.62177]
[1733337916406,5.61163791,3814.8,3813.8,2.62205]
[1733337916407,5.61163791,3815.3,3813.8,0.55]
[1733337916615,5.61163791,3815.3,3814.3,2.6217]
[1733337916927,8.23266791,3815.3,3814.0,2.62188]
[1733337917079,8.23266791,3815.3,3813.9,1.98488024]
[1733337917080,5.61163791,3815.3,3813.9,1.98488024]
[1733337917285,3.44436679,3815.2,3813.9,1.98488024]
[1733337917540,5.61163791,3815.3,3814.0,0.55]
[1733337917874,5.61163791,3815.6,3814.6,1.6171]
[1733337918351,5.61163791,3815.5,3815.1,2.62115]
[1733337918558,5.61163791,3815.5,3814.8,2.62131]
[1733337918769,5.61163791,3815.5,3814.6,1.6171]
[1733337918770,5.61163791,3815.5,3815.0,2.62122]
[1733337918958,5.61163791,3815.5,3815.1,2.62113]
[1733337919127,5.61163791,3815.5,3814.8,0.55]
[1733337919327,5.61163791,3815.5,3814.7,0.55]
[1733337919526,5.61163791,3815.5,3814.7,1.028853]
[1733337919765,5.61163791,3815.5,3815.2,2.62108]
[1733337920837,5.61163791,3815.5,3815.3,2.62101]
[1733337921045,5.61163791,3815.5,3815.0,0.55]
[1733337921443,5.61163791,3815.5,3814.8,0.55]
[1733337921658,5.61163791,3815.5,3815.0,2.62122]
[1733337921874,5.61163791,3816.1,3814.7,0.478853]
[1733337922032,5.61163791,3816.1,3815.0,2.62122]
[1733337922385,2.7838451,3817.0,3815.2,1.5005]
[1733337922386,5.61163791,3816.0,3815.2,1.5005]
[1733337922672,0.1639451,3817.0,3815.2,1.5005]
[1733337922673,5.61163791,3816.5,3816.2,2.6204]
[1733337922843,5.61163791,3816.4,3816.0,4.20443]
[1733337923246,0.1639451,3817.0,3816.0,4.20443]
[1733337923247,5.61163791,3816.9,3816.0,1.5839]
[1733337923575,5.61163791,3816.9,3816.6,2.6201]
[1733337924436,5.61163791,3816.9,3816.8,2.61999]
[1733337924665,5.61163791,3816.9,3816.1,2.62047]
[1733337924666,0.1639451,3817.0,3816.9,2.61992]
[1733337924932,0.1639451,3817.0,3816.9,3.16992]
[1733337925134,0.1639451,3817.0,3816.9,3.637952]
[1733337925538,5.61163791,3818.0,3816.9,3.637952]
[1733337925736,5.61163791,3817.9,3816.9,3.637952]
[1733337925967,5.61163791,3817.9,3817.3,2.61965]
[1733337926133,5.61163791,3817.9,3816.9,1.018032]
[1733337926329,6.1728017,3817.9,3816.9,0.55]
[1733337926936,5.61163791,3817.9,3817.2,2.61971]
[1733337927137,5.61163791,3817.9,3817.3,2.61965]
[1733337928176,5.61163791,3817.9,3817.0,1.5104]
[1733337928177,5.61163791,3817.9,3817.1,2.61978]
[1733337928335,5.61163791,3817.9,3817.0,1.5104]
[1733337928673,5.61163791,3817.9,3817.0,4.13025]
[1733337928911,0.82307679,3817.8,3817.0,4.13025]
[1733337929701,0.82307679,3817.8,3816.1,0.26924644]
[1733337929702,0.82307679,3817.8,3816.6,1.5947]
[1733337929904,5.61163791,3817.4,3816.7,2.62003]
[1733337930132,5.61163791,3817.4,3816.4,0.52761073]
[1733337930431,2.61979,3817.1,3816.1,1.5947]
[1733337930582,2.61992,3817.0,3815.8,1.6341]
[1733337930776,2.61992,3817.0,3815.9,3.13982597]
[1733337930979,5.61163791,3817.1,3815.9,0.51922597]
[1733337931281,2.61868,3818.8,3816.6,2.62013]
[1733337931282,5.61163791,3817.7,3816.6,2.62013]
[1733337931704,8.23101791,3817.7,3816.6,2.62013]
[1733337932078,2.61952,3817.5,3816.2,0.55]
[1733337932274,2.61952,3817.5,3816.4,2.62026]
[1733337932823,2.61956,3817.5,3816.3,2.62033]
[1733337933055,0.82311979,3817.4,3816.4,2.62024]
[1733337933828,5.61163791,3817.7,3817.2,2.6197]
[1733337934029,5.61163791,3818.6,3817.6,2.61944]
[1733337934236,2.89209085,3819.3,3817.6,2.61944]
[1733337934237,5.61163791,3818.5,3817.6,2.61944]
[1733337934436,5.61163791,3818.5,3817.4,2.61956]
[1733337935121,5.61163791,3818.5,3817.5,2.61949]
[1733337935320,0.82303979,3818.4,3817.5,2.61949]
[1733337935553,0.82303979,3818.4,3817.3,4.16983]
[1733337935932,0.82303979,3818.4,3817.3,2.61963]
[1733337936132,0.82303979,3818.4,3816.9,1.6556]
[1733337936133,2.61908,3818.2,3817.0,2.61982]
[1733337937026,5.61163791,3817.4,3816.2,2.62035]
[1733337937220,2.61994,3816.9,3815.8,2.62062]
[1733337937533,2.62017,3816.6,3815.5,2.62082]
[1733337937735,2.882277,3816.5,3815.2,1.5646]
[1733337937954,0.262017,3816.5,3815.8,2.62068]
[1733337938155,0.262017,3816.5,3815.2,1.5646]
[1733337938156,5.61163791,3816.4,3815.2,1.5646]
[1733337938328,5.61163791,3816.4,3816.3,2.62033]
[1733337938526,5.61163791,3816.6,3816.4,2.62026]
[1733337938862,2.61912,3818.1,3815.2,4.18569]
[1733337938863,8.23109791,3817.6,3816.0,4.14979]
[1733337939067,5.61163791,3817.4,3816.4,2.62026]
[1733337939235,6.64804079,3817.3,3816.4,2.62026]
[1733337939440,5.61163791,3817.1,3816.1,0.55]
[1733337939769,5.61163791,3817.4,3816.1,0.55]
[1733337940280,5.61163791,3817.4,3816.8,2.61997]
[1733337940647,5.61163791,3817.4,3816.3,2.62033]
[1733337940974,5.61163791,3817.7,3816.6,2.62011]
[1733337941183,5.61163791,3817.7,3817.1,2.61975]
[1733337941383,5.61163791,3817.7,3816.4,0.55]
[1733337941384,5.61163791,3817.7,3816.9,2.61991]
[1733337941537,5.61163791,3817.7,3816.4,3.17022]
[1733337942048,5.61163791,3817.7,3816.8,2.61998]
[1733337942250,0.19432961,3817.6,3816.9,2.61992]
[1733337942477,6.4347277,3817.7,3816.4,3.17022]
[1733337942478,0.19432961,3817.5,3816.5,1.5938]
[1733337942637,5.61163791,3817.7,3817.0,2.61983]
[1733337942976,0.19451954,3817.6,3817.0,2.61983]
[1733337943173,0.19451954,3817.5,3817.0,2.61983]
[1733337943374,0.19451954,3817.4,3817.0,2.61983]
[1733337943536,5.61163791,3817.7,3816.7,2.62]
[1733337943733,0.75588854,3817.6,3816.7,2.62]
[1733337943935,0.19472475,3817.5,3816.5,2.62019]
[1733337944173,0.56116379,3817.6,3816.5,2.62019]
[1733337944174,0.19472475,3817.4,3816.5,2.62019]
[1733337944336,0.19472475,3817.3,3816.5,2.62019]
[1733337944537,0.19472475,3817.3,3816.1,0.52291861]
[1733337944538,0.19472475,3817.2,3816.3,2.62033]
[1733337944745,0.19472475,3817.1,3816.4,2.62026]
[1733337944940,0.19472475,3817.0,3816.4,2.62026]
[1733337945279,3.18062379,3817.6,3816.4,2.62026]
[1733337945573,3.74449386,3817.5,3816.4,2.62026]
[1733337945773,0.19419407,3817.4,3816.1,0.52291861]
[1733337945973,5.80583198,3817.3,3816.5,2.62013]
[1733337946288,0.19419407,3817.2,3816.1,3.14331861]
[1733337946581,0.19419407,3817.2,3816.4,2.62022]
[1733337946582,0.19419407,3817.1,3816.4,2.62022]
[1733337946741,0.19419407,3817.0,3816.4,2.62022]
[1733337946943,0.19419407,3816.9,3816.4,2.62022]
[1733337947145,0.19419407,3816.8,3816.1,0.52291861]
[1733337947387,0.1944782,3816.7,3816.1,3.14338861]
[1733337947675,5.61163791,3817.1,3816.4,2.62026]
[1733337947902,0.8230305,3817.0,3816.4,2.62026]
[1733337948064,0.19450049,3816.9,3816.4,2.62026]
[1733337948267,5.61163791,3817.1,3816.4,2.62026]
[1733337948268,0.19450049,3816.8,3816.4,2.62026]
[1733337948588,0.19450049,3816.7,3816.4,2.62026]
[1733337948908,0.19450049,3816.6,3816.5,2.62019]
[1733337949417,0.19450049,3816.6,3816.2,2.62035]
[1733337949418,5.61163791,3817.1,3816.7,2.62004]
[1733337949701,0.19470237,3817.0,3816.7,2.62004]
[1733337949904,0.19470237,3816.9,3816.7,2.62004]
[1733337950107,0.19470237,3816.8,3816.7,2.62004]
[1733337950309,0.19470237,3816.8,3816.5,2.62014]
[1733337950521,0.19470237,3816.7,3816.3,2.62027]
[1733337950676,0.19470237,3816.6,3816.1,0.52291861]
[1733337950881,0.19470237,3816.5,3816.1,0.52291861]
[1733337951215,5.61163791,3817.1,3816.1,3.14337861]
[1733337951417,1.01803368,3817.0,3816.2,2.6204]
[1733337951583,0.19489789,3816.9,3816.2,2.6204]
[1733337951919,0.19489789,3816.8,3816.1,3.14336861]
[1733337952103,0.19489789,3816.7,3816.1,3.14336861]
[1733337952309,0.19489789,3816.7,3815.6,1.524]
[1733337952310,0.19489789,3816.6,3815.6,1.524]
[1733337952510,5.61163791,3816.4,3815.3,1.6176]
[1733337952822,5.61163791,3816.4,3815.0,2.62116]
[1733337952823,5.61163791,3816.2,3815.0,2.62116]
[1733337953117,5.8065358,3816.1,3815.1,2.62115]
[1733337953318,0.58065358,3816.4,3814.9,1.5559]
[1733337953319,5.8065358,3816.0,3814.9,1.5559]
[1733337953530,5.8065358,3815.9,3815.4,2.62095]
[1733337953823,5.8065358,3815.8,3815.4,2.62095]
[1733337954114,0.19492211,3815.7,3815.4,2.62095]
[1733337954315,0.19492211,3815.6,3815.4,2.62095]
[1733337954517,0.19492211,3815.5,3815.4,2.62095]
[1733337954881,0.19492211,3815.5,3815.1,0.51105905]
[1733337954882,5.61163791,3816.0,3815.1,0.51105905]
[1733337955089,0.19483807,3815.9,3815.8,2.62062]
[1733337955294,5.61163791,3816.0,3815.9,2.62061]
[1733337955583,5.61163791,3816.0,3815.9,3.038261]
[1733337956208,5.61163791,3816.0,3815.9,2.62061]
[1733337957925,5.61163791,3817.3,3815.7,1.5559]
[1733337958232,0.24357332,3817.2,3816.1,2.62044]
[1733337958414,0.24357332,3817.2,3815.7,1.5559]
[1733337958415,0.24357332,3817.1,3815.7,1.5559]
[1733337958600,5.61163791,3817.0,3816.3,2.62029]
[1733337958928,6.1728017,3817.0,3815.7,1.5559]
[1733337959142,6.1728017,3817.0,3815.9,2.62055]
[1733337959312,6.1728017,3817.0,3815.7,1.5559]
[1733337959313,6.1728017,3817.0,3815.7,4.1766]
[1733337959627,6.1728017,3817.0,3816.0,2.62053]
[1733337960512,6.1728017,3817.0,3816.1,2.62044]
[1733337960792,0.61728017,3816.9,3815.7,1.5559]
[1733337961016,0.61728017,3816.9,3816.1,2.62046]
[1733337961333,0.61728017,3816.9,3816.2,2.6204]
[1733337961528,0.61728017,3816.9,3816.4,2.62026]
[1733337961845,0.61728017,3816.9,3815.8,2.64683339]
[1733337961846,0.61728017,3816.9,3815.8,0.02620339]
[1733337962139,5.61163791,3816.9,3815.9,0.55]
[1733337962292,5.61163791,3817.7,3816.7,2.62003]
[1733337963218,5.61163791,3817.7,3816.7,2.62]
[1733337963810,8.23103791,3817.7,3816.5,2.62018]
[1733337964009,0.87434084,3817.6,3816.4,1.6552]
[1733337964332,5.61163791,3817.7,3816.4,1.6552]
[1733337964553,5.61163791,3817.7,3817.1,2.61978]
[1733337964694,1.09602796,3818.2,3817.3,0.0097626]
[1733337964695,5.61163791,3818.2,3817.3,0.0097626]
[1733337965810,5.61163791,3818.2,3817.4,2.61955]
[1733337965998,5.61163791,3818.2,3817.3,0.0097626]
[1733337966203,0.56116379,3818.1,3817.3,0.0097626]
[1733337966546,2.61927,3817.9,3817.3,0.0097626]
[1733337966749,1.65719175,3818.1,3817.3,0.0097626]
[1733337966950,2.56307809,3818.1,3817.3,0.0097626]
[1733337967161,2.61926,3817.9,3817.3,0.0097626]
[1733337967366,0.65411676,3817.8,3817.3,0.0097626]
[1733337967745,2.61944,3817.7,3817.3,0.0097626]
[1733337967939,5.61163791,3817.6,3817.3,0.0097626]
[1733337968140,5.61163791,3817.5,3817.3,0.0097626]
[1733337970760,2.61958,3817.4,3817.3,0.0097626]
[1733337972041,3.5262926,3817.4,3817.3,0.0097626]
[1733337972360,1.44974812,3817.4,3817.3,0.0097626]
[1733337972531,5.61163791,3817.5,3817.3,0.0097626]
[1733337972736,2.61958,3817.4,3817.3,0.0097626]
[1733337973064,8.23121791,3817.4,3817.3,0.0097626]
[1733337973271,9.1379996,3817.4,3817.3,0.0097626]
[1733337973427,9.1379996,3817.4,3815.4,5.74086313]
[1733337973428,2.61992,3816.9,3815.3,4.36596313]
[1733337973631,1.09602796,3817.5,3815.3,4.36596313]
[1733337973632,2.6202,3816.5,3815.3,1.6251]
[1733337973943,5.60187531,3816.1,3815.0,2.62121]
[1733337974160,5.60187531,3816.1,3814.9,4.24633]
[1733337974484,0.82222753,3816.0,3814.9,1.6251]
[1733337975237,0.82222753,3816.0,3814.9,4.24638]
[1733337976240,5.60187531,3815.9,3814.6,2.62144]
[1733337976441,5.60187531,3815.6,3814.5,1.6419]
[1733337976671,5.60187531,3815.6,3814.6,2.62149]
[1733337976841,0.3018927,3815.5,3814.6,2.62149]
[1733337977580,5.60187531,3815.6,3814.5,1.6419]
[1733337977884,5.60187531,3815.6,3815.2,2.62104]
[1733337978180,5.60187531,3816.4,3814.8,1.5829]
[1733337978658,2.62056,3816.0,3814.8,2.62135]
[1733337978850,2.62056,3816.0,3814.5,1.5829]
[1733337978851,5.60187531,3815.9,3814.5,1.5829]
[1733337979052,2.62075,3815.7,3814.5,4.20445]
[1733337979265,8.22254531,3815.9,3814.6,2.6215]
[1733337979677,2.62071,3815.8,3814.6,2.6215]
[1733337979975,6.12868769,3815.9,3814.7,2.62143]
[1733337980180,0.75346869,3815.8,3814.8,2.62136]
[1733337980339,0.75346869,3815.8,3814.6,2.62149]
[1733337980543,3.37415869,3815.8,3814.6,2.62149]
[1733337980987,0.75346869,3815.8,3814.7,2.62139]
[1733337981147,0.94893747,3815.7,3814.7,2.62139]
[1733337981484,0.94893747,3815.7,3814.5,4.20445]
[1733337982043,5.60187531,3815.6,3814.5,4.20445]
[1733337982662,8.22275531,3815.6,3814.5,1.5829]
[1733337982879,2.62089,3815.5,3814.5,1.5829]
[1733337983086,0.91717028,3815.4,3814.2,2.62171]
[1733337983378,0.91717028,3815.4,3814.7,2.62143]
[1733337983754,0.91717028,3815.4,3814.1,1.5173]
[1733337983955,5.60187531,3815.6,3814.3,1.6239]
[1733337984162,5.60187531,3815.6,3815.1,2.6211]
[1733337984844,5.60187531,3815.6,3815.3,2.621]
[1733337985046,5.60187531,3816.8,3815.5,2.62087]
[1733337985351,5.60187531,3816.7,3815.5,2.62087]
[1733337985512,4.81156036,3817.7,3815.1,2.62116]
[1733337985513,5.60187531,3816.6,3815.7,1.6535]
[1733337985794,5.60187531,3816.9,3816.8,2.61999]
[1733337986009,5.60187531,3816.9,3816.5,1.6535]
[1733337986010,5.60187531,3817.7,3816.6,2.62013]
[1733337986158,5.60187531,3817.8,3816.7,3.047383]
[1733337986360,0.27383417,3818.3,3816.7,3.047383]
[1733337986361,5.60187531,3818.1,3816.7,0.427363]
[1733337986599,5.60187531,3818.1,3817.4,2.61951]
[1733337986810,5.60187531,3817.7,3817.5,2.6195]
[1733337986963,5.60187531,3818.0,3817.5,2.6195]
[1733337987165,5.60187531,3817.9,3817.6,2.61944]
[1733337987584,5.60187531,3818.8,3817.6,2.61944]
[1733337987903,5.60187531,3818.7,3817.4,1.5174]
[1733337988098,5.60187531,3818.7,3817.7,2.61937]
[1733337988265,0.65176942,3818.6,3817.5,2.61944]
[1733337988461,0.65176942,3818.6,3817.6,2.61944]
[1733337990287,0.65176942,3818.6,3817.4,1.5174]
[1733337990288,0.65176942,3818.6,3817.8,2.61928]
[1733337990494,0.65176942,3818.6,3817.6,2.61943]
[1733337991010,5.60187531,3818.5,3817.6,2.61943]
[1733337991313,0.62536447,3818.4,3817.6,2.61943]
[1733337991514,0.62536447,3818.4,3817.4,1.5174]
[1733337991515,0.62536447,3818.4,3817.3,2.6196]
[1733337991674,0.62536447,3818.4,3816.7,3.047383]
[1733337991675,3.24426447,3818.4,3817.1,2.61972]
[1733337991875,3.24426447,3818.4,3817.2,2.61971]
[1733337993077,0.62536447,3818.4,3817.2,2.61971]
[1733337993410,0.88461298,3818.3,3817.2,2.61971]
[1733337993791,0.88461298,3818.3,3817.3,2.61959]
[1733337993980,2.61875,3818.7,3816.9,1.5496]
[1733337993981,5.60187531,3818.4,3817.6,2.61937]
[1733337994315,5.60187531,3818.4,3817.8,2.61928]
[1733337994819,5.60187531,3818.4,3817.1,2.61978]
[1733337994820,5.60187531,3818.4,3817.4,2.61958]
[1733337994977,5.60187531,3818.4,3817.8,2.61928]
[1733337995177,5.60187531,3818.4,3817.3,2.6196]
[1733337995419,5.60187531,3818.4,3817.9,2.61923]
[1733337996121,5.60187531,3818.4,3817.6,1.6283]
[1733337996288,5.60187531,3818.4,3817.7,2.61936]
[1733337996489,5.60187531,3818.4,3817.8,2.61926]
[1733337996882,5.60187531,3818.4,3817.9,2.61919]
[1733337997217,0.38362631,3818.9,3818.1,2.61908]
[1733337997218,5.60187531,3818.2,3818.1,2.61908]
[1733337997515,6.76197277,3820.0,3818.1,2.61905]
[1733337997516,5.60187531,3819.6,3818.1,2.61905]
[1733337997852,5.60187531,3819.6,3818.0,2.1441]
[1733337997853,5.60187531,3819.6,3818.5,2.61881]
[1733337998691,5.60187531,3819.6,3818.6,2.61875]
[1733337999307,5.60187531,3819.6,3818.1,2.6191]
[1733337999503,0.87448133,3819.5,3818.0,2.1441]
[1733337999706,0.87448133,3819.5,3818.1,2.6191]
[1733338000423,0.87448133,3819.5,3818.0,2.1441]
[1733338000424,3.49266133,3819.5,3818.2,2.61897]
[1733338000626,0.87448133,3819.5,3818.5,2.6188]
[1733338000795,0.64763566,3819.4,3818.3,2.61895]
[1733338001126,0.64763566,3819.4,3818.0,2.1441]
[1733338001431,0.64763566,3819.4,3818.5,2.61881]
[1733338001735,0.64763566,3819.4,3818.0,1.5941]
[1733338001901,0.64763566,3819.4,3817.7,0.52905618]
[1733338001902,0.6249511,3819.3,3817.7,0.52905618]
[1733338002101,0.6249511,3819.3,3817.9,2.61922]
[1733338002289,5.60187531,3818.8,3817.7,2.61937]
[1733338002489,8.22055531,3818.8,3817.7,2.61937]
[1733338002926,8.22055531,3818.8,3817.3,1.96766]
[1733338002927,5.60187531,3818.8,3817.3,1.96766]
[1733338003224,0.56018753,3818.7,3817.8,2.61924]
[1733338003725,0.56018753,3818.7,3817.4,0.196766]
[1733338003935,0.56018753,3818.7,3818.0,2.61916]
[1733338004297,0.56018753,3818.7,3817.4,0.196766]
[1733338004927,5.60187531,3818.8,3817.9,0.55]
[1733338005134,5.60187531,3819.6,3818.0,1.6515]
[1733338005295,2.5,3820.0,3818.0,1.6515]
[1733338005296,5.60187531,3819.4,3818.6,2.61871]
[1733338005500,5.60187531,3819.4,3818.7,2.61866]
[1733338006424,5.60187531,3819.4,3818.1,0.55]
[1733338006630,6.42387584,3819.4,3818.0,2.17056085]
[1733338006833,6.42387584,3819.4,3818.3,2.61895]
[1733338006834,9.04214584,3819.4,3818.3,2.61895]
[1733338006990,2.61828,3819.3,3818.3,2.61895]
[1733338007390,6.42387584,3819.4,3818.0,1.6515]
[1733338007624,5.60187531,3819.3,3818.3,1.6515]
[1733338007795,5.60187531,3819.8,3818.5,2.61882]
[1733338008044,5.60187531,3819.8,3818.8,2.61855]
[1733338008268,5.60187531,3819.7,3819.0,2.61844]
[1733338008579,5.60187531,3819.7,3818.5,2.61882]
[1733338008735,5.60187531,3819.7,3819.3,2.61825]
[1733338009072,5.60187531,3819.7,3818.6,1.6515]
[1733338009367,5.60187531,3819.7,3819.4,2.61816]
[1733338009733,5.60187531,3819.7,3819.0,1.5526]
[1733338009936,5.60187531,3819.9,3819.2,2.61834]
[1733338010173,5.60187531,3819.9,3819.2,1.228935]
[1733338010337,5.60187531,3819.9,3819.2,0.55]
[1733338010539,5.60187531,3819.9,3819.1,0.55]
[1733338010894,5.60187531,3819.9,3819.2,2.61834]
[1733338011068,5.60187531,3819.9,3819.3,2.61826]
[1733338011389,5.60187531,3819.9,3819.1,0.55]
[1733338011583,5.60187531,3819.9,3819.3,2.61827]
[1733338011795,5.60187531,3819.9,3819.4,2.61818]
[1733338012181,2.5,3820.0,3819.7,2.61799]
[1733338012362,2.5,3820.0,3819.7,4.18819]
[1733338012559,2.5,3820.0,3819.8,2.61791]
[1733338012760,2.5,3820.0,3819.8,3.036721]
[1733338013005,2.5,3820.0,3819.8,0.418811]
[1733338013360,2.5,3820.0,3819.8,3.036721]
[1733338013552,2.5,3820.0,3819.8,0.418811]
[1733338014868,2.5,3820.0,3819.7,1.5702]
[1733338015409,2.5,3820.0,3819.4,0.55]
[1733338015576,2.5,3820.0,3819.6,1.6493]
[1733338017905,2.5,3820.0,3819.2,0.47211]
[1733338017906,2.5,3820.0,3819.3,1.5595]
[1733338018093,2.5,3820.0,3819.2,0.47211]
[1733338018394,2.5,3820.0,3819.7,2.61799]
[1733338018597,2.5,3820.0,3819.8,2.61793]
[1733338018757,2.5,3820.0,3819.6,1.6359]
[1733338018957,2.5,3820.0,3819.9,2.61786]
[1733338019506,2.5,3820.0,3819.6,1.6359]
[1733338019894,2.5,3820.0,3819.7,2.61795]
[1733338020514,2.5,3820.0,3819.6,2.0977071]
[1733338020673,2.5,3820.0,3819.6,2.61805]
[1733338021015,2.5,3820.0,3819.4,0.55]
[1733338021188,2.5,3820.0,3819.8,2.61787]
[1733338021714,2.5,3820.0,3819.6,2.61806]
[1733338021896,2.5,3820.0,3819.7,2.618]
[1733338022812,2.5,3820.0,3819.7,2.61794]
[1733338022970,2.5,3820.0,3819.7,0.261794]
[1733338023171,2.5,3820.0,3819.9,2.61786]
[1733338023371,2.5,3820.0,3819.9,4.17046]
[1733338025228,2.5,3820.0,3819.9,4.72046]
[1733338026802,0.1639451,3820.8,3819.9,4.72046]
[1733338026803,0.1639451,3820.8,3820.7,3.16732]
[1733338026970,0.1639451,3820.8,3820.7,4.71992]
[1733338027173,0.1639451,3820.8,3820.7,5.453659]
[1733338029318,0.1639451,3820.8,3820.7,5.47982575]
[1733338029616,0.1639451,3820.8,3820.7,5.453659]
[1733338031200,0.1639451,3820.8,3820.7,5.47982471]
[1733338031377,0.1639451,3820.8,3820.7,5.453659]
[1733338032471,0.1639451,3820.8,3820.7,5.4798246]
[1733338033130,5.1e-06,3820.8,3820.7,8.4798246]
[1733338033424,5.1e-06,3820.8,3820.7,8.453659]
[1733338034898,0.27343929,3823.5,3820.7,8.453659]
[1733338034899,5.60187531,3822.9,3822.0,2.61642]
[1733338035097,5.60187531,3822.9,3821.9,1.5282]
[1733338035302,0.40903414,3823.5,3821.9,1.5282]
[1733338035303,5.60187531,3823.4,3822.5,2.61608]
[1733338035605,0.24338949,3823.3,3822.1,2.61629]
[1733338035913,0.67833275,3823.2,3822.1,2.61629]
[1733338036291,0.67833275,3823.2,3821.7,3.14383941]
[1733338036292,0.67833275,3823.2,3822.2,2.61627]
[1733338036631,0.67833275,3823.2,3822.4,2.61614]
[1733338036800,0.67833275,3823.2,3821.8,0.55]
[1733338037000,0.67833275,3823.2,3822.3,2.6162]
[1733338037692,0.67833275,3823.2,3821.9,2.61649]
[1733338037693,0.67833275,3823.2,3822.4,2.61615]
[1733338037892,5.60187531,3823.4,3822.4,2.61615]
[1733338038409,5.60187531,3823.4,3822.5,2.61605]
[1733338038600,5.60187531,3823.4,3822.0,2.61637]
[1733338038601,0.40903414,3823.5,3822.2,1.5001]
[1733338038801,5.60187531,3823.5,3822.4,2.61609]
[1733338039105,5.60187531,3823.4,3822.4,2.61612]
[1733338039426,2.61512,3824.0,3821.9,1.5001]
[1733338039427,6.42360584,3823.3,3821.9,1.5001]
[1733338039637,2.61573,3823.1,3821.9,2.61644]
[1733338039794,6.42360584,3823.3,3821.7,0.52724941]
[1733338039993,2.61569,3823.1,3822.0,2.61639]
[1733338040821,2.61569,3823.1,3822.1,2.61636]
[1733338040995,0.90392958,3823.0,3822.1,2.61636]
[1733338041395,0.90392958,3823.0,3822.2,2.61628]
[1733338041639,0.90392958,3823.0,3822.3,2.61622]
[1733338041862,0.90392958,3823.0,3822.2,1.5541]
[1733338042020,5.60187531,3823.3,3822.2,1.5541]
[1733338042225,1.55428652,3824.7,3822.7,2.61591]
[1733338042226,5.60187531,3823.7,3822.7,2.61591]
[1733338042455,5.60187531,3823.6,3823.1,2.61566]
[1733338042668,5.60187531,3823.6,3822.9,2.6158]
[1733338042812,5.60187531,3823.6,3823.0,2.61574]
[1733338043233,5.60187531,3824.1,3823.1,2.61567]
[1733338043435,2.61467,3824.6,3823.1,2.61567]
[1733338043436,5.60187531,3824.6,3823.8,2.61519]
[1733338043641,5.60187531,3824.6,3823.6,2.61532]
[1733338043843,5.60187531,3824.6,3823.6,0.02615071]
[1733338044045,5.60187531,3824.5,3823.8,2.61518]
[1733338044348,5.60187531,3824.5,3823.9,2.6151]
[1733338044534,5.60187531,3824.5,3823.5,1.5779]
[1733338044735,6.17845735,3824.5,3823.2,1.5779]
[1733338044935,6.17845735,3824.5,3823.5,2.61539]
[1733338045410,6.17845735,3824.5,3823.6,2.6153]
[1733338045611,6.17845735,3824.5,3823.2,1.5779]
[1733338045612,5.60187531,3824.5,3823.8,2.61513]
[1733338045925,5.60187531,3824.5,3823.3,0.55]
[1733338046235,8.21659531,3824.5,3823.4,2.61541]